[Event "Titled Tuesday Blitz April 19 Late 2022"]
[White "Ibadov, Dashgyn"]
[Black "Ladan, Nicholas"]
[WhiteFideId "24107514"]
[BlackFideId "30918855"]
[WhiteElo "2138"]
[BlackElo "2167"]
[Result "1-0"]
[Round "02"]
[TimeControl "180+1"]
[Date "2022.04.19"]
[WhiteClock "0:01:51"]
[BlackClock "0:00:26"]

1. e4 {[%clk 0:03:00]}  e5 {[%clk 0:02:58]} 2. Nf3 {[%clk 0:03:00]}  Nc6 {[%clk 0:02:58]} 3. d4 {[%clk 0:02:59]}  exd4 {[%clk 0:02:58]} 4. Nxd4 {[%clk 0:03:00]}  Bc5 {[%clk 0:02:58]} 5. Nb3 {[%clk 0:02:58]}  Bb6 {[%clk 0:02:58]} 6. Nc3 {[%clk 0:02:58]}  Nge7 {[%clk 0:02:51]} 7. Qe2 {[%clk 0:02:56]}  O-O {[%clk 0:02:49]} 8. Be3 {[%clk 0:02:56]}  f5 {[%clk 0:02:48]} 9. f4 {[%clk 0:02:54]}  fxe4 {[%clk 0:02:47]} 10. g3 {[%clk 0:02:45]}  d5 {[%clk 0:02:45]} 11. O-O-O {[%clk 0:02:44]}  Qe8 {[%clk 0:02:37]} 12. Nxd5 {[%clk 0:02:33]}  Nxd5 {[%clk 0:02:36]} 13. Rxd5 {[%clk 0:02:34]}  Be6 {[%clk 0:02:12]} 14. Rd1 {[%clk 0:02:29]}  Rd8 {[%clk 0:01:51]} 15. Bg2 {[%clk 0:02:27]}  Nb4 {[%clk 0:01:33]} 16. Bxb6 {[%clk 0:02:09]}  axb6 {[%clk 0:01:28]} 17. Rxd8 {[%clk 0:02:00]}  Qxd8 {[%clk 0:01:20]} 18. Qxe4 {[%clk 0:02:00]}  Nxa2+ {[%clk 0:00:43]} 19. Kb1 {[%clk 0:02:00]}  Bxb3 {[%clk 0:00:43]} 20. cxb3 {[%clk 0:01:55]}  Qa8 {[%clk 0:00:26]} 21. Qxb7 {[%clk 0:01:52]}  Qa5 {[%clk 0:00:26]} 22. Qd5+ {[%clk 0:01:51]} 1-0


[Site "https://www.chess.com"]

[Event "Titled Tuesday Blitz April 19 Late 2022"]
[White "Iskusnyh, Sergei"]
[Black "Moussard, Jules"]
[WhiteFideId "4120027"]
[BlackFideId "642908"]
[WhiteElo "2492"]
[BlackElo "2589"]
[Result "1/2-1/2"]
[Round "02"]
[TimeControl "180+1"]
[Date "2022.04.19"]
[WhiteClock "0:00:30"]
[BlackClock "0:02:32"]

1. d4 {[%clk 0:03:00]}  Nf6 {[%clk 0:02:59]} 2. c4 {[%clk 0:03:01]}  e6 {[%clk 0:02:58]} 3. g3 {[%clk 0:03:01]}  d5 {[%clk 0:02:58]} 4. Bg2 {[%clk 0:03:01]}  c6 {[%clk 0:02:59]} 5. Nf3 {[%clk 0:03:01]}  Nbd7 {[%clk 0:02:58]} 6. Qc2 {[%clk 0:02:58]}  Bd6 {[%clk 0:02:59]} 7. O-O {[%clk 0:02:56]}  O-O {[%clk 0:02:59]} 8. Nbd2 {[%clk 0:02:54]}  b6 {[%clk 0:02:57]} 9. e4 {[%clk 0:02:53]}  dxe4 {[%clk 0:02:58]} 10. Nxe4 {[%clk 0:02:53]}  Nxe4 {[%clk 0:02:59]} 11. Qxe4 {[%clk 0:02:53]}  Bb7 {[%clk 0:03:00]} 12. Rd1 {[%clk 0:02:44]}  Qc7 {[%clk 0:02:58]} 13. Qd3 {[%clk 0:01:45]}  h6 {[%clk 0:02:55]} 14. b3 {[%clk 0:01:41]}  Rad8 {[%clk 0:02:54]} 15. Bb2 {[%clk 0:01:41]}  c5 {[%clk 0:02:54]} 16. Rac1 {[%clk 0:01:40]}  cxd4 {[%clk 0:02:54]} 17. Nxd4 {[%clk 0:01:40]}  Bxg2 {[%clk 0:02:53]} 18. Kxg2 {[%clk 0:01:39]}  Nc5 {[%clk 0:02:54]} 19. Qf3 {[%clk 0:01:38]}  a6 {[%clk 0:02:53]} 20. Rd2 {[%clk 0:01:32]}  Be5 {[%clk 0:02:52]} 21. Rcd1 {[%clk 0:01:31]}  Rd7 {[%clk 0:02:52]} 22. Nb5 {[%clk 0:00:48]}  axb5 {[%clk 0:02:51]} 23. Bxe5 {[%clk 0:00:48]}  Qxe5 {[%clk 0:02:51]} 24. Rxd7 {[%clk 0:00:49]}  Nxd7 {[%clk 0:02:52]} 25. Rxd7 {[%clk 0:00:49]}  bxc4 {[%clk 0:02:52]} 26. bxc4 {[%clk 0:00:49]}  Qc5 {[%clk 0:02:53]} 27. Qd3 {[%clk 0:00:47]}  Ra8 {[%clk 0:02:49]} 28. Rd8+ {[%clk 0:00:45]}  Rxd8 {[%clk 0:02:50]} 29. Qxd8+ {[%clk 0:00:45]}  Kh7 {[%clk 0:02:50]} 30. Qd3+ {[%clk 0:00:44]}  f5 {[%clk 0:02:51]} 31. h4 {[%clk 0:00:44]}  Kg6 {[%clk 0:02:52]} 32. a4 {[%clk 0:00:38]}  Kf6 {[%clk 0:02:52]} 33. Qc3+ {[%clk 0:00:38]}  Qe5 {[%clk 0:02:46]} 34. Qb4 {[%clk 0:00:36]}  Qe4+ {[%clk 0:02:45]} 35. Kg1 {[%clk 0:00:35]}  Qd4 {[%clk 0:02:44]} 36. Qf8+ {[%clk 0:00:30]}  Kg6 {[%clk 0:02:44]} 37. Qe8+ {[%clk 0:00:30]}  Kf6 {[%clk 0:02:44]} 38. Qf8+ {[%clk 0:00:30]}  Kg6 {[%clk 0:02:34]} 39. Qe8+ {[%clk 0:00:30]}  Kf6 {[%clk 0:02:32]} 40. Qf8+ {[%clk 0:00:30]} 1/2-1/2


[Site "https://www.chess.com"]

[Event "Titled Tuesday Blitz April 19 Late 2022"]
[White "Jacobson, Aaron"]
[Black "Naroditsky, Daniel"]
[WhiteFideId "2089912"]
[BlackFideId "2026961"]
[WhiteElo "2265"]
[BlackElo "2608"]
[Result "0-1"]
[Round "02"]
[TimeControl "180+1"]
[Date "2022.04.19"]
[WhiteClock "0:00:02"]
[BlackClock "0:00:06"]

1. e4 {[%clk 0:03:00]}  c5 {[%clk 0:02:57]} 2. Nf3 {[%clk 0:03:00]}  d6 {[%clk 0:02:58]} 3. d4 {[%clk 0:03:00]}  cxd4 {[%clk 0:02:59]} 4. e5 {[%clk 0:03:01]}  dxe5 {[%clk 0:02:58]} 5. c3 {[%clk 0:03:02]}  Nc6 {[%clk 0:02:51]} 6. Bb5 {[%clk 0:03:02]}  Bd7 {[%clk 0:02:49]} 7. O-O {[%clk 0:03:02]}  dxc3 {[%clk 0:02:33]} 8. Nxc3 {[%clk 0:03:00]}  Nf6 {[%clk 0:02:33]} 9. Qe2 {[%clk 0:02:22]}  Nd4 {[%clk 0:02:21]} 10. Qxe5 {[%clk 0:02:22]}  Nxf3+ {[%clk 0:02:19]} 11. gxf3 {[%clk 0:02:22]}  Qb8 {[%clk 0:02:13]} 12. Qd4 {[%clk 0:02:05]}  Qd6 {[%clk 0:02:00]} 13. Qxd6 {[%clk 0:01:48]}  exd6 {[%clk 0:02:00]} 14. Re1+ {[%clk 0:01:47]}  Kd8 {[%clk 0:01:52]} 15. Bg5 {[%clk 0:01:34]}  Bxb5 {[%clk 0:01:44]} 16. Nxb5 {[%clk 0:01:35]}  Kd7 {[%clk 0:01:42]} 17. Rad1 {[%clk 0:00:41]}  Ne8 {[%clk 0:01:25]} 18. Re2 {[%clk 0:00:37]}  a6 {[%clk 0:01:18]} 19. Nc3 {[%clk 0:00:08]}  Nc7 {[%clk 0:01:19]} 20. Bf4 {[%clk 0:00:08]}  Rd8 {[%clk 0:01:15]} 21. Red2 {[%clk 0:00:06]}  Kc8 {[%clk 0:01:13]} 22. Bxd6 {[%clk 0:00:06]}  Bxd6 {[%clk 0:01:14]} 23. Rxd6 {[%clk 0:00:06]}  Rxd6 {[%clk 0:01:13]} 24. Rxd6 {[%clk 0:00:07]}  Ne6 {[%clk 0:01:09]} 25. Kf1 {[%clk 0:00:07]}  Re8 {[%clk 0:01:07]} 26. Rd2 {[%clk 0:00:07]}  Nf4 {[%clk 0:01:04]} 27. Nd5 {[%clk 0:00:06]}  Ng6 {[%clk 0:00:59]} 28. Nc3 {[%clk 0:00:04]}  Re6 {[%clk 0:00:56]} 29. Ne4 {[%clk 0:00:04]}  Ne5 {[%clk 0:00:55]} 30. Ng5 {[%clk 0:00:03]}  Rg6 {[%clk 0:00:54]} 31. Rd5 {[%clk 0:00:03]}  Rxg5 {[%clk 0:00:52]} 32. f4 {[%clk 0:00:03]}  Rh5 {[%clk 0:00:51]} 33. Rxe5 {[%clk 0:00:03]}  Rxh2 {[%clk 0:00:29]} 34. Re7 {[%clk 0:00:03]}  Rh1+ {[%clk 0:00:24]} 35. Ke2 {[%clk 0:00:03]}  Rb1 {[%clk 0:00:24]} 36. Rxf7 {[%clk 0:00:03]}  Rxb2+ {[%clk 0:00:25]} 37. Ke3 {[%clk 0:00:04]}  Rxa2 {[%clk 0:00:24]} 38. Rxg7 {[%clk 0:00:04]}  h5 {[%clk 0:00:17]} 39. f5 {[%clk 0:00:05]}  Kd8 {[%clk 0:00:10]} 40. f6 {[%clk 0:00:04]}  Ke8 {[%clk 0:00:10]} 41. f4 {[%clk 0:00:04]}  Rb2 {[%clk 0:00:09]} 42. Ke4 {[%clk 0:00:04]}  Rb5 {[%clk 0:00:09]} 43. Rh7 {[%clk 0:00:03]}  a5 {[%clk 0:00:08]} 44. Kf3 {[%clk 0:00:02]}  a4 {[%clk 0:00:09]} 45. Re7+ {[%clk 0:00:01]}  Kf8 {[%clk 0:00:09]} 46. Ke4 {[%clk 0:00:01]}  a3 {[%clk 0:00:08]} 47. Rc7 {[%clk 0:00:01]}  a2 {[%clk 0:00:08]} 48. Rc8+ {[%clk 0:00:02]}  Kf7 {[%clk 0:00:08]} 49. Ra8 {[%clk 0:00:02]}  Rb2 {[%clk 0:00:07]} 50. Kf5 {[%clk 0:00:03]}  Rb5+ {[%clk 0:00:07]} 51. Ke4 {[%clk 0:00:03]}  Kxf6 {[%clk 0:00:06]} 52. Rxa2 {[%clk 0:00:03]}  h4 {[%clk 0:00:06]} 53. Ra8 {[%clk 0:00:03]}  Rh5 {[%clk 0:00:06]} 54. Ra2 {[%clk 0:00:02]}  h3 {[%clk 0:00:06]} 55. Rh2 {[%clk 0:00:02]}  b5 {[%clk 0:00:06]} 56. Kf3 {[%clk 0:00:02]}  b4 {[%clk 0:00:06]} 57. Kf2 {[%clk 0:00:02]}  Kf5 {[%clk 0:00:06]} 58. Kg3 {[%clk 0:00:02]}  b3 {[%clk 0:00:06]} 0-1


[Site "https://www.chess.com"]

[Event "Titled Tuesday Blitz April 19 Late 2022"]
[White "Jacobson, Brandon"]
[Black "Yedidia, Daniel"]
[WhiteFideId "30901561"]
[BlackFideId "30905907"]
[WhiteElo "2362"]
[BlackElo "2617"]
[Result "1-0"]
[Round "02"]
[TimeControl "180+1"]
[Date "2022.04.19"]
[WhiteClock "0:02:09"]
[BlackClock "0:00:45"]

1. Nf3 {[%clk 0:02:59]}  Nf6 {[%clk 0:02:58]} 2. c4 {[%clk 0:02:58]}  b6 {[%clk 0:02:57]} 3. g3 {[%clk 0:02:59]}  e6 {[%clk 0:02:56]} 4. Bg2 {[%clk 0:02:59]}  Bb7 {[%clk 0:02:56]} 5. O-O {[%clk 0:03:00]}  Be7 {[%clk 0:02:55]} 6. d4 {[%clk 0:03:00]}  O-O {[%clk 0:02:55]} 7. Re1 {[%clk 0:03:01]}  d5 {[%clk 0:02:55]} 8. cxd5 {[%clk 0:03:01]}  exd5 {[%clk 0:02:55]} 9. Nc3 {[%clk 0:03:02]}  Nbd7 {[%clk 0:02:55]} 10. Bf4 {[%clk 0:03:03]}  c6 {[%clk 0:02:52]} 11. Rc1 {[%clk 0:03:03]}  Rc8 {[%clk 0:02:49]} 12. Qa4 {[%clk 0:03:03]}  a5 {[%clk 0:02:47]} 13. Ne5 {[%clk 0:03:04]}  Re8 {[%clk 0:02:45]} 14. e4 {[%clk 0:03:03]}  Nxe4 {[%clk 0:02:41]} 15. Nxe4 {[%clk 0:03:02]}  dxe4 {[%clk 0:02:41]} 16. Bxe4 {[%clk 0:03:02]}  Nxe5 {[%clk 0:02:34]} 17. dxe5 {[%clk 0:03:03]}  b5 {[%clk 0:02:16]} 18. Qc2 {[%clk 0:02:57]}  g6 {[%clk 0:02:12]} 19. e6 {[%clk 0:02:57]}  f5 {[%clk 0:02:08]} 20. Rcd1 {[%clk 0:02:45]}  Qb6 {[%clk 0:02:06]} 21. Bxf5 {[%clk 0:02:45]}  gxf5 {[%clk 0:01:54]} 22. Qxf5 {[%clk 0:02:46]}  Rf8 {[%clk 0:01:31]} 23. Qg4+ {[%clk 0:02:44]}  Kh8 {[%clk 0:01:31]} 24. Rd7 {[%clk 0:02:23]}  Rxf4 {[%clk 0:01:13]} 25. Qxf4 {[%clk 0:02:19]}  Rf8 {[%clk 0:01:04]} 26. Qe5+ {[%clk 0:02:09]}  Bf6 {[%clk 0:01:02]} 27. e7 {[%clk 0:02:08]}  Bxe5 {[%clk 0:00:45]} 28. exf8=Q# {[%clk 0:02:09]} 1-0


[Site "https://www.chess.com"]

[Event "Titled Tuesday Blitz April 19 Late 2022"]
[White "Jaferian, Koosha"]
[Black "Shimanov, Aleksandr"]
[WhiteFideId "12507440"]
[BlackFideId "4198603"]
[WhiteElo "2030"]
[BlackElo "2636"]
[Result "0-1"]
[Round "02"]
[TimeControl "180+1"]
[Date "2022.04.19"]
[WhiteClock "0:00:07"]
[BlackClock "0:00:47"]

1. e4 {[%clk 0:03:00]}  d5 {[%clk 0:02:57]} 2. exd5 {[%clk 0:03:00]}  Qxd5 {[%clk 0:02:58]} 3. Nf3 {[%clk 0:03:01]}  Bg4 {[%clk 0:02:58]} 4. Be2 {[%clk 0:03:01]}  Nc6 {[%clk 0:02:58]} 5. h3 {[%clk 0:03:01]}  Bf5 {[%clk 0:02:53]} 6. d4 {[%clk 0:02:58]}  e6 {[%clk 0:02:52]} 7. c4 {[%clk 0:02:59]}  Qd7 {[%clk 0:02:52]} 8. Nc3 {[%clk 0:02:58]}  O-O-O {[%clk 0:02:48]} 9. Be3 {[%clk 0:02:58]}  Nf6 {[%clk 0:02:48]} 10. O-O {[%clk 0:02:57]}  Ne4 {[%clk 0:02:36]} 11. Qb3 {[%clk 0:02:40]}  Na5 {[%clk 0:02:34]} 12. Qd1 {[%clk 0:02:34]}  f6 {[%clk 0:02:29]} 13. Nxe4 {[%clk 0:02:20]}  Bxe4 {[%clk 0:02:30]} 14. a3 {[%clk 0:02:21]}  Nc6 {[%clk 0:02:30]} 15. Qa4 {[%clk 0:02:07]}  Kb8 {[%clk 0:02:21]} 16. Rfd1 {[%clk 0:02:04]}  Be7 {[%clk 0:02:19]} 17. b4 {[%clk 0:02:03]}  Bxf3 {[%clk 0:02:01]} 18. Bxf3 {[%clk 0:02:02]}  Ne5 {[%clk 0:02:02]} 19. Qxd7 {[%clk 0:01:35]}  Nxf3+ {[%clk 0:02:02]} 20. gxf3 {[%clk 0:01:36]}  Rxd7 {[%clk 0:02:02]} 21. Rd2 {[%clk 0:01:31]}  Rhd8 {[%clk 0:02:01]} 22. Rad1 {[%clk 0:01:32]}  b6 {[%clk 0:01:53]} 23. f4 {[%clk 0:01:23]}  c6 {[%clk 0:01:46]} 24. Kg2 {[%clk 0:01:22]}  f5 {[%clk 0:01:46]} 25. Kf3 {[%clk 0:01:19]}  Bf6 {[%clk 0:01:46]} 26. Ke2 {[%clk 0:00:58]}  b5 {[%clk 0:01:40]} 27. c5 {[%clk 0:00:54]}  Kb7 {[%clk 0:01:40]} 28. Kd3 {[%clk 0:00:49]}  Rd5 {[%clk 0:01:31]} 29. Kc3 {[%clk 0:00:45]}  a5 {[%clk 0:01:29]} 30. Ra1 {[%clk 0:00:39]}  Ra8 {[%clk 0:01:27]} 31. Rda2 {[%clk 0:00:33]}  Ra6 {[%clk 0:01:16]} 32. f3 {[%clk 0:00:34]}  Ra8 {[%clk 0:01:16]} 33. Bf2 {[%clk 0:00:31]}  Kc8 {[%clk 0:01:04]} 34. Be3 {[%clk 0:00:24]}  Kd7 {[%clk 0:01:03]} 35. Bf2 {[%clk 0:00:24]}  Ke7 {[%clk 0:01:02]} 36. Be3 {[%clk 0:00:25]}  Kf7 {[%clk 0:01:02]} 37. Bf2 {[%clk 0:00:25]}  Ra6 {[%clk 0:00:59]} 38. Be3 {[%clk 0:00:25]}  Rd7 {[%clk 0:00:59]} 39. Bf2 {[%clk 0:00:17]}  Rda7 {[%clk 0:00:59]} 40. Kb3 {[%clk 0:00:15]}  axb4 {[%clk 0:00:50]} 41. axb4 {[%clk 0:00:16]}  Rxa2 {[%clk 0:00:50]} 42. Rxa2 {[%clk 0:00:16]}  Rxa2 {[%clk 0:00:51]} 43. Kxa2 {[%clk 0:00:17]}  Kg6 {[%clk 0:00:52]} 44. Kb3 {[%clk 0:00:16]}  Kh5 {[%clk 0:00:52]} 45. Kc2 {[%clk 0:00:15]}  Bh4 {[%clk 0:00:52]} 46. Be3 {[%clk 0:00:08]}  Bg3 {[%clk 0:00:52]} 47. Kd3 {[%clk 0:00:08]}  Be1 {[%clk 0:00:47]} 48. Ke2 {[%clk 0:00:05]}  Bxb4 {[%clk 0:00:47]} 49. Kf1 {[%clk 0:00:06]}  Bc3 {[%clk 0:00:47]} 50. Kg2 {[%clk 0:00:07]}  b4 {[%clk 0:00:47]} 0-1


[Site "https://www.chess.com"]

[Event "Titled Tuesday Blitz April 19 Late 2022"]
[White "Janturin, Artur"]
[Black "Kavyev, Ruslan"]
[WhiteFideId "4130022"]
[BlackFideId "34110981"]
[WhiteElo "2374"]
[BlackElo "2182"]
[Result "0-1"]
[Round "02"]
[TimeControl "180+1"]
[Date "2022.04.19"]
[WhiteClock "0:00:06"]
[BlackClock "0:00:37"]

1. b3 {[%clk 0:03:00]}  e5 {[%clk 0:02:58]} 2. Bb2 {[%clk 0:03:00]}  Nc6 {[%clk 0:02:59]} 3. e3 {[%clk 0:03:00]}  Nf6 {[%clk 0:03:00]} 4. Nf3 {[%clk 0:02:59]}  e4 {[%clk 0:02:56]} 5. Nd4 {[%clk 0:02:59]}  Bd6 {[%clk 0:02:52]} 6. d3 {[%clk 0:02:53]}  O-O {[%clk 0:02:47]} 7. Nd2 {[%clk 0:02:52]}  Re8 {[%clk 0:02:45]} 8. dxe4 {[%clk 0:02:40]}  Nxe4 {[%clk 0:02:44]} 9. Nxe4 {[%clk 0:02:41]}  Rxe4 {[%clk 0:02:45]} 10. Bd3 {[%clk 0:02:41]}  Re8 {[%clk 0:02:45]} 11. Qh5 {[%clk 0:02:02]}  g6 {[%clk 0:02:45]} 12. Qh6 {[%clk 0:01:34]}  Be5 {[%clk 0:02:41]} 13. Nxc6 {[%clk 0:01:14]}  dxc6 {[%clk 0:02:42]} 14. Bxe5 {[%clk 0:00:58]}  Rxe5 {[%clk 0:02:43]} 15. Rd1 {[%clk 0:00:52]}  Qf6 {[%clk 0:02:38]} 16. O-O {[%clk 0:00:45]}  Bg4 {[%clk 0:02:34]} 17. f3 {[%clk 0:00:37]}  Bf5 {[%clk 0:02:34]} 18. Bxf5 {[%clk 0:00:33]}  Qxf5 {[%clk 0:02:34]} 19. e4 {[%clk 0:00:32]}  Qf6 {[%clk 0:02:31]} 20. Rd7 {[%clk 0:00:32]}  Rh5 {[%clk 0:02:29]} 21. Qe3 {[%clk 0:00:27]}  Qe6 {[%clk 0:02:27]} 22. Rfd1 {[%clk 0:00:26]}  Re8 {[%clk 0:02:26]} 23. Rd8 {[%clk 0:00:23]}  c5 {[%clk 0:02:17]} 24. R8d7 {[%clk 0:00:20]}  Qe5 {[%clk 0:02:04]} 25. g3 {[%clk 0:00:20]}  b6 {[%clk 0:01:32]} 26. R7d5 {[%clk 0:00:19]}  Qxd5 {[%clk 0:01:29]} 27. Rxd5 {[%clk 0:00:17]}  Rxd5 {[%clk 0:01:29]} 28. Qf4 {[%clk 0:00:16]}  Rd7 {[%clk 0:01:28]} 29. h4 {[%clk 0:00:16]}  h5 {[%clk 0:01:21]} 30. g4 {[%clk 0:00:16]}  hxg4 {[%clk 0:01:21]} 31. Qxg4 {[%clk 0:00:16]}  Rd2 {[%clk 0:01:20]} 32. h5 {[%clk 0:00:16]}  Re6 {[%clk 0:01:18]} 33. Qf4 {[%clk 0:00:13]}  Rxc2 {[%clk 0:01:16]} 34. Qxc7 {[%clk 0:00:13]}  gxh5 {[%clk 0:01:02]} 35. Qxa7 {[%clk 0:00:12]}  Rg6+ {[%clk 0:01:01]} 36. Kf1 {[%clk 0:00:12]}  Rgg2 {[%clk 0:00:51]} 37. Qxb6 {[%clk 0:00:12]}  Rh2 {[%clk 0:00:42]} 38. Kg1 {[%clk 0:00:11]}  Rcg2+ {[%clk 0:00:42]} 39. Kf1 {[%clk 0:00:11]}  Rxa2 {[%clk 0:00:43]} 40. Qb8+ {[%clk 0:00:10]}  Kh7 {[%clk 0:00:41]} 41. Kg1 {[%clk 0:00:10]}  Rhb2 {[%clk 0:00:37]} 42. Qe5 {[%clk 0:00:06]}  Rb1# {[%clk 0:00:37]} 0-1


[Site "https://www.chess.com"]

[Event "Titled Tuesday Blitz April 19 Late 2022"]
[White "Jobava, Baadur"]
[Black "Szpar, Milosz"]
[WhiteFideId "13601520"]
[BlackFideId "1184989"]
[WhiteElo "2617"]
[BlackElo "2447"]
[Result "1-0"]
[Round "02"]
[TimeControl "180+1"]
[Date "2022.04.19"]
[WhiteClock "0:01:43"]
[BlackClock "0:00:09"]

1. e4 {[%clk 0:03:00]}  c5 {[%clk 0:03:00]} 2. Nf3 {[%clk 0:02:59]}  d6 {[%clk 0:02:59]} 3. d4 {[%clk 0:03:00]}  cxd4 {[%clk 0:03:00]} 4. Nxd4 {[%clk 0:03:01]}  Nf6 {[%clk 0:03:01]} 5. f3 {[%clk 0:03:01]}  e5 {[%clk 0:02:57]} 6. Nb3 {[%clk 0:03:02]}  d5 {[%clk 0:02:54]} 7. Bg5 {[%clk 0:03:02]}  d4 {[%clk 0:02:53]} 8. c3 {[%clk 0:03:00]}  Nc6 {[%clk 0:02:52]} 9. Bb5 {[%clk 0:02:59]}  h6 {[%clk 0:02:44]} 10. Bh4 {[%clk 0:02:56]}  Qb6 {[%clk 0:02:22]} 11. Bxc6+ {[%clk 0:02:53]}  bxc6 {[%clk 0:02:21]} 12. Bxf6 {[%clk 0:02:52]}  gxf6 {[%clk 0:02:21]} 13. cxd4 {[%clk 0:02:53]}  Bb4+ {[%clk 0:02:19]} 14. Nc3 {[%clk 0:02:53]}  Ba6 {[%clk 0:02:18]} 15. Qd2 {[%clk 0:02:36]}  Rd8 {[%clk 0:02:01]} 16. d5 {[%clk 0:02:25]}  cxd5 {[%clk 0:01:55]} 17. exd5 {[%clk 0:02:26]}  Bc4 {[%clk 0:01:32]} 18. O-O-O {[%clk 0:02:21]}  Rxd5 {[%clk 0:01:30]} 19. Qc2 {[%clk 0:02:21]}  Rxd1+ {[%clk 0:01:27]} 20. Rxd1 {[%clk 0:02:21]}  O-O {[%clk 0:01:21]} 21. Nd5 {[%clk 0:02:09]}  Bxd5 {[%clk 0:01:17]} 22. Rxd5 {[%clk 0:02:10]}  Qe6 {[%clk 0:01:00]} 23. Qd3 {[%clk 0:02:01]}  a5 {[%clk 0:01:00]} 24. a3 {[%clk 0:01:56]}  a4 {[%clk 0:00:49]} 25. axb4 {[%clk 0:01:56]}  axb3 {[%clk 0:00:49]} 26. Qxb3 {[%clk 0:01:57]}  Rc8+ {[%clk 0:00:31]} 27. Kb1 {[%clk 0:01:55]}  Kg7 {[%clk 0:00:22]} 28. Qd3 {[%clk 0:01:54]}  Qb6 {[%clk 0:00:20]} 29. Qe4 {[%clk 0:01:43]}  Qg1+ {[%clk 0:00:18]} 30. Ka2 {[%clk 0:01:44]}  Qxg2 {[%clk 0:00:10]} 31. Kb3 {[%clk 0:01:43]}  Qxh2 {[%clk 0:00:09]} 32. Qg4+ {[%clk 0:01:43]} 1-0


[Site "https://www.chess.com"]

[Event "Titled Tuesday Blitz April 19 Late 2022"]
[White "Kamsky, Gata"]
[Black "Zlatin, Alexander"]
[WhiteFideId "2000024"]
[BlackFideId "2810549"]
[WhiteElo "2645"]
[BlackElo "2228"]
[Result "1/2-1/2"]
[Round "02"]
[TimeControl "180+1"]
[Date "2022.04.19"]
[WhiteClock "0:00:16"]
[BlackClock "0:00:06"]

1. e4 {[%clk 0:03:00]}  e5 {[%clk 0:02:59]} 2. Nf3 {[%clk 0:02:59]}  Nc6 {[%clk 0:02:59]} 3. Bb5 {[%clk 0:02:59]}  a6 {[%clk 0:02:58]} 4. Ba4 {[%clk 0:02:59]}  Nf6 {[%clk 0:02:58]} 5. O-O {[%clk 0:02:58]}  Nxe4 {[%clk 0:02:58]} 6. d4 {[%clk 0:02:57]}  b5 {[%clk 0:02:58]} 7. Bb3 {[%clk 0:02:56]}  d5 {[%clk 0:02:58]} 8. dxe5 {[%clk 0:02:57]}  Be6 {[%clk 0:02:58]} 9. Qe2 {[%clk 0:02:57]}  Nc5 {[%clk 0:02:50]} 10. Nc3 {[%clk 0:02:49]}  Nxb3 {[%clk 0:02:41]} 11. cxb3 {[%clk 0:02:48]}  Bb4 {[%clk 0:02:28]} 12. Rd1 {[%clk 0:02:42]}  O-O {[%clk 0:02:16]} 13. Bg5 {[%clk 0:02:41]}  Qd7 {[%clk 0:02:08]} 14. Rac1 {[%clk 0:02:37]}  h6 {[%clk 0:02:04]} 15. Bf4 {[%clk 0:02:29]}  Be7 {[%clk 0:01:50]} 16. h3 {[%clk 0:02:26]}  Rad8 {[%clk 0:01:46]} 17. Qd2 {[%clk 0:02:08]}  d4 {[%clk 0:01:34]} 18. Ne4 {[%clk 0:02:00]}  Bd5 {[%clk 0:01:28]} 19. Qd3 {[%clk 0:01:38]}  Nb4 {[%clk 0:01:07]} 20. Qxd4 {[%clk 0:01:34]}  Qc8 {[%clk 0:00:50]} 21. Qe3 {[%clk 0:01:28]}  Nxa2 {[%clk 0:00:46]} 22. Ra1 {[%clk 0:01:26]}  Nb4 {[%clk 0:00:46]} 23. Rd2 {[%clk 0:01:15]}  Qb7 {[%clk 0:00:43]} 24. Re1 {[%clk 0:01:11]}  Bxe4 {[%clk 0:00:36]} 25. Qxe4 {[%clk 0:01:10]}  Qxe4 {[%clk 0:00:35]} 26. Rxe4 {[%clk 0:01:10]}  Nd5 {[%clk 0:00:33]} 27. Rc2 {[%clk 0:01:03]}  c5 {[%clk 0:00:32]} 28. Bd2 {[%clk 0:01:03]}  Rd7 {[%clk 0:00:29]} 29. Rc1 {[%clk 0:01:03]}  Rfd8 {[%clk 0:00:29]} 30. Ra1 {[%clk 0:01:02]}  Nc7 {[%clk 0:00:27]} 31. Ba5 {[%clk 0:00:56]}  Rd1+ {[%clk 0:00:24]} 32. Re1 {[%clk 0:00:56]}  Rxe1+ {[%clk 0:00:23]} 33. Nxe1 {[%clk 0:00:56]}  Rd7 {[%clk 0:00:22]} 34. Bxc7 {[%clk 0:00:56]}  Rxc7 {[%clk 0:00:22]} 35. Rxa6 {[%clk 0:00:57]}  Rd7 {[%clk 0:00:21]} 36. Nf3 {[%clk 0:00:52]}  Rd1+ {[%clk 0:00:21]} 37. Kh2 {[%clk 0:00:52]}  Rd3 {[%clk 0:00:20]} 38. Ra7 {[%clk 0:00:50]}  Bf8 {[%clk 0:00:19]} 39. Ra8 {[%clk 0:00:44]}  Rxb3 {[%clk 0:00:18]} 40. e6 {[%clk 0:00:44]}  fxe6 {[%clk 0:00:16]} 41. Ne5 {[%clk 0:00:45]}  Rxb2 {[%clk 0:00:15]} 42. f4 {[%clk 0:00:45]}  c4 {[%clk 0:00:12]} 43. Ng6 {[%clk 0:00:44]}  c3 {[%clk 0:00:10]} 44. Rxf8+ {[%clk 0:00:43]}  Kh7 {[%clk 0:00:10]} 45. Ne5 {[%clk 0:00:42]}  c2 {[%clk 0:00:10]} 46. Rc8 {[%clk 0:00:42]}  b4 {[%clk 0:00:10]} 47. h4 {[%clk 0:00:41]}  h5 {[%clk 0:00:08]} 48. Nf3 {[%clk 0:00:37]}  b3 {[%clk 0:00:07]} 49. Nd4 {[%clk 0:00:36]}  Rb1 {[%clk 0:00:06]} 50. Nxb3 {[%clk 0:00:36]}  Rxb3 {[%clk 0:00:06]} 51. Rxc2 {[%clk 0:00:37]}  Rb4 {[%clk 0:00:06]} 52. g3 {[%clk 0:00:36]}  Kg6 {[%clk 0:00:06]} 53. Rc5 {[%clk 0:00:36]}  Rb2+ {[%clk 0:00:05]} 54. Kh3 {[%clk 0:00:35]}  Rd2 {[%clk 0:00:05]} 55. Rg5+ {[%clk 0:00:35]}  Kh6 {[%clk 0:00:04]} 56. Re5 {[%clk 0:00:35]}  Rd6 {[%clk 0:00:05]} 57. Kg2 {[%clk 0:00:36]}  g6 {[%clk 0:00:05]} 58. Kf3 {[%clk 0:00:36]}  Kg7 {[%clk 0:00:05]} 59. Ke3 {[%clk 0:00:36]}  Kf6 {[%clk 0:00:05]} 60. Rb5 {[%clk 0:00:36]}  Ra6 {[%clk 0:00:06]} 61. Rg5 {[%clk 0:00:31]}  Ra3+ {[%clk 0:00:05]} 62. Kf2 {[%clk 0:00:31]}  Ra2+ {[%clk 0:00:05]} 63. Kf3 {[%clk 0:00:30]}  Ra3+ {[%clk 0:00:05]} 64. Kf2 {[%clk 0:00:30]}  Ra2+ {[%clk 0:00:06]} 65. Kf3 {[%clk 0:00:30]}  Ra3+ {[%clk 0:00:06]} 66. Kg2 {[%clk 0:00:30]}  Ra2+ {[%clk 0:00:07]} 67. Kh3 {[%clk 0:00:31]}  Ra3 {[%clk 0:00:07]} 68. Re5 {[%clk 0:00:30]}  Rb3 {[%clk 0:00:07]} 69. Rc5 {[%clk 0:00:30]}  Rd3 {[%clk 0:00:06]} 70. Rc8 {[%clk 0:00:29]}  Ra3 {[%clk 0:00:06]} 71. Rc2 {[%clk 0:00:27]}  Rb3 {[%clk 0:00:06]} 72. Kg2 {[%clk 0:00:27]}  Ra3 {[%clk 0:00:06]} 73. Re2 {[%clk 0:00:26]}  Rb3 {[%clk 0:00:06]} 74. Kf2 {[%clk 0:00:26]}  Rc3 {[%clk 0:00:07]} 75. Re3 {[%clk 0:00:25]}  Rc2+ {[%clk 0:00:07]} 76. Kf3 {[%clk 0:00:25]}  Rc1 {[%clk 0:00:07]} 77. Rb3 {[%clk 0:00:25]}  Rc2 {[%clk 0:00:07]} 78. Ke4 {[%clk 0:00:24]}  Rc4+ {[%clk 0:00:06]} 79. Kf3 {[%clk 0:00:24]}  Ra4 {[%clk 0:00:07]} 80. g4 {[%clk 0:00:23]}  hxg4+ {[%clk 0:00:06]} 81. Kxg4 {[%clk 0:00:24]}  Ra1 {[%clk 0:00:05]} 82. Rg3 {[%clk 0:00:22]}  Rc1 {[%clk 0:00:04]} 83. Re3 {[%clk 0:00:20]}  Rg1+ {[%clk 0:00:04]} 84. Kh3 {[%clk 0:00:20]}  Rf1 {[%clk 0:00:05]} 85. Kg3 {[%clk 0:00:20]}  Rg1+ {[%clk 0:00:05]} 86. Kf3 {[%clk 0:00:19]}  Rb1 {[%clk 0:00:06]} 87. Kg4 {[%clk 0:00:18]}  Rg1+ {[%clk 0:00:06]} 88. Kh3 {[%clk 0:00:18]}  Rh1+ {[%clk 0:00:06]} 89. Kg3 {[%clk 0:00:17]}  Rg1+ {[%clk 0:00:06]} 90. Kf3 {[%clk 0:00:16]}  Rh1 {[%clk 0:00:06]} 91. Kg4 {[%clk 0:00:16]}  Rg1+ {[%clk 0:00:06]} 1/2-1/2


[Site "https://www.chess.com"]